Cogmind - Beta 15 *** ADVENTURER MODE // 2025.06.21 @ 19:00:59 Player: Electroid Result: Self-destructed Performance ------------- Evolutions (1) 500 Regions Visited (3) 600 Robots Destroyed (17) 85 Value Destroyed (356) 356 Prototype IDs (0) 0 Alien Tech Used (0) 0 Bonus (-15) -15 TOTAL SCORE: 1526 Bonus ------- High Alert Combat Kills 4 Friendly Fire -19 Cogmind --------- Core Integrity 358/400 Matter 4/300 Energy 250/250 System Corruption 0% Temperature Cool (0) Movement Flying (32) Location -9/Storage Parts ------- > --- POWER (1) -------- Ion Engine > --- PROPULSION (3) --- Flight Unit Flight Unit VTOL Module > --- UTILITY (3) ------ Visual Processing Unit ECM Suite > --- WEAPON (2) ------- Mini Grenade Launcher Mini Grenade Launcher > --- INVENTORY (5) ---- Heavy Ion Engine Aluminum Leg Visual Processing Unit Shield Generator Improved Assault Rifle Peak State ------------ > --- POWER ------------ Ion Engine > --- PROPULSION ------- Flight Unit Flight Unit Flight Unit > --- UTILITY ---------- Visual Processing Unit ECM Suite Hardened Light Armor Plating > --- WEAPON ----------- Mini Grenade Launcher Mini Grenade Launcher > --- INVENTORY -------- Hardened Light Armor Plating [Rating: 13] Favorites ----------- Power Ion Engine Engine Ion Engine Propulsion Flight Unit Leg Aluminum Leg Hover Unit Improved Hover Unit Flight Unit Flight Unit Utility ECM Suite Device ECM Suite Storage Medium Storage Unit Processor Visual Processing Unit Protection Hardened Light Armor Plating Weapon Mini Grenade Launcher Ballistic Gun Light Assault Rifle Launcher Mini Grenade Launcher Build | -11 -10 -9 -9 ------- Run | Yrd Mat Mat Sto Slots Evolved 2 | . . 2 . Power . | . . . . Propulsion 1 | . . 1 . Utility 1 | . . 1 . Weapon . | . . . . Parts Attached 24 | 6 9 9 . Power 3 | 2 . 1 . Engine 3 | 2 . 1 . Core . | . . . . Reactor . | . . . . Propulsion 10 | 2 3 5 . Treads . | . . . . Leg 2 | 2 . . . Wheel . | . . . . Hover 1 | . . 1 . Flight 7 | . 3 4 . Utility 5 | . 3 2 . Device 2 | . 2 . . Storage 1 | . 1 . . Processor 1 | . . 1 . Hackware . | . . . . Protection 1 | . . 1 . Artifact . | . . . . Weapon 6 | 2 3 1 . Energy Gun . | . . . . Energy Cannon . | . . . . Ballistic Gun 3 | 2 1 . . Ballistic Cannon . | . . . . Launcher 3 | . 2 1 . Special Weapon . | . . . . Impact Weapon . | . . . . Slashing Weapon . | . . . . Piercing Weapon . | . . . . Special Melee Weapon . | . . . . Unidentified Prototypes . | . . . . Parts Lost . | . . . . Power . | . . . . Propulsion . | . . . . Utility . | . . . . Weapon . | . . . . Highest Loss Streak . | . . . . To Critical Strikes . | . . . . Average Backups 3 | . 3 3 4 Power . | . . . 1 Propulsion . | . . . . Utility 1 | . 1 2 2 Weapon . | . 1 . 1 Tool/Special . | . . . . Unused Backups 11 | . 2 4 5 Power 1 | . . . 1 Propulsion 2 | . . 1 1 Utility 4 | . . 2 2 Weapon 4 | . 2 1 1 Tool/Special . | . . . . Average Slot Usage (%) 80 | . 70 85 88 Engine 12 | . 14 11 11 Leg 3 | . 8 . . Flight 27 | . 19 32 33 Device 10 | . 9 11 11 Processor 6 | . . 10 11 Ballistic Gun 3 | . 9 . . Launcher 16 | . 8 21 22 Peak Build Rating 13 | 5 7 13 13 Average Rating 8 | 3 5 11 13 On Entrance 6 | . 5 6 13 Naked Turns . | . . . . Heaviest Build 10 | 8 10 9 9 Greatest Support 20 | 20 20 12 12 Greatest Overweight (x) 1 | . 1 1 . Average Overweight (x) . | . . . . Largest Inventory Capacity 10 | 5 10 5 5 Average Capacity 5 | 5 5 5 5 Most Carried 5 | 3 5 5 5 Average Carried 3 | . 3 3 4 Final Capacity 5 | 5 5 5 5 Final Carried 5 | 2 5 4 5 Class Distribution -------------------- 43% | Mutant 33% | Scavenger-Sprinter 22% | Scavenger-Mutant Dominant Class ---------------- Mutant | -10/Materials Scavenger-Mutant | -9/Materials Scavenger-Sprinter | -9/Storage Resources | -11 -10 -9 -9 ----------- Run | Yrd Mat Mat Sto Matter Collected 468 | 262 162 44 . Remotely . | . . . . Salvage Created 263 | 50 3 210 . Parts 18 | 3 1 14 . Haulers Intercepted 1 | . . 1 . Recyclers Shooed 1 | . . 1 . Parts Field Recycled . | . . . . Retrieved Matter . | . . . . Parts Self-Destructed . | . . . . Prevented . | . . . . Kills | -11 -10 -9 -9 ------- Run | Yrd Mat Mat Sto Combat Hostiles Destroyed 14 | 1 1 12 . Guns 1 | 1 . . . AOE 13 | . 1 12 . Classes Destroyed 6 | 1 1 4 . Hauler 1 | . . 1 . Recycler 1 | . . 1 . Watcher 1 | . . 1 . Swarmer 9 | . 1 8 . Grunt 3 | 1 . 2 . Sentry 2 | . . 2 . Best Kill Streak 15 | 1 1 15 . Combat Bots Only 12 | 1 1 12 . Max Kills in Single Turn 3 | 1 1 3 . Gunslinging . | . . . . Exploded 3 | . 1 3 . Melee . | . . . . Uniques/NPCs Destroyed . | . . . . Combat | -11 -10 -9 -9 -------- Run | Yrd Mat Mat Sto Hostile Shots Fired 37 | 4 . 19 14 Missed 20 | 2 . 10 8 Hits 17 | 2 . 9 6 Projectile 17 | 2 . 9 6 Damage Taken 159 | 16 . 87 56 Core 42 | . . 30 12 Absorbed by Shields . | . . . . Ignored by Resistances 47 | 5 . 25 17 Core Remaining (%) 100 | 100 100 . . Volleys Fired 17 | 3 2 12 . Largest 2 | 2 2 2 . Hottest 60 | 40 50 60 . Shots Fired 33 | 6 3 24 . Gun 8 | 6 2 . . Cannon . | . . . . Launcher 25 | . 1 24 . Special . | . . . . Kinetic 8 | 6 2 . . Thermal . | . . . . Explosive 25 | . 1 24 . Electromagnetic . | . . . . Robot Hit Streak 10 | 5 2 10 . Robot Miss Streak 1 | . 1 . . Penetration Max . | . . . . Secondary Targets . | . . . . Shots Hit Robots 15 | 5 2 8 . Core Hits 28 | 2 1 25 . Critical Kills . | . . . . Critical Parts Destroyed . | . . . . Critical Strikes . | . . . . Melee Attacks . | . . . . Impact . | . . . . Slashing . | . . . . Piercing . | . . . . Sneak Attacks . | . . . . Combat Hostiles . | . . . . Follow-up Attacks . | . . . . Damage Inflicted 1270 | 45 85 1140 . Guns 55 | 45 10 . . Cannons . | . . . . Explosions 1215 | . 75 1140 . Melee . | . . . . Ramming . | . . . . Kinetic 55 | 45 10 . . Thermal 85 | . . 85 . Explosive 1130 | . 75 1055 . Electromagnetic . | . . . . Impact . | . . . . Slashing . | . . . . Piercing . | . . . . Highest Corruption . | . . . . Average Corruption . | . . . . Corruption Purged . | . . . . Corruption Blocked . | . . . . Overload Shots . | . . . . Overflow Damage 92 | . . 92 . Projectiles . | . . . . Explosions 92 | . . 92 . Melee . | . . . . Knockbacks . | . . . . Impact . | . . . . Kinetic . | . . . . Secondary . | . . . . Self-Inflicted Damage 6 | . . 6 . Shots 1 | . . 1 . Rammed . | . . . . Targets Rammed . | . . . . Kicked . | . . . . Crushed . | . . . . Highest Temperature 15 | . 10 15 . Average Temperature 6 | . 7 6 . Received Heat Transfer 42 | 12 . 15 15 Siege Activations . | . . . . Martial Activations . | . . . . Shielding Activations . | . . . . Robots Disrupted . | . . . . Combat Hostiles . | . . . . Robots Corrupted . | . . . . Combat Hostiles . | . . . . Parts Fried . | . . . . Impact Corruptions . | . . . . Robots Melted . | . . . . Combat Hostiles . | . . . . Parts Melted . | . . . . Heat Transferred 50 | . . 50 . Parts Sabotaged . | . . . . Parts Stolen . | . . . . Parts Stripped . | . . . . Power Chain Reactions . | . . . . Alert | -11 -10 -9 -9 ------- Run | Yrd Mat Mat Sto Maximum Alert Level 2 | . . 2 . Low Security (%) 85 | 100 100 46 100 Level 1 1 | . . 6 . Level 2 12 | . . 46 . Level 3 . | . . . . Level 4 . | . . . . Level 5 . | . . . . High Security . | . . . . Max Security . | . . . . Peak Influence 443 | 20 44 443 153 Initial 148 | . 11 . 148 Average 92 | 2 7 228 100 Influence Increases 571 | 20 44 492 15 Destroy 0b10 Robot/C 280 | 20 20 240 . Destroy 0b10 Robot/NC 15 | . . 15 . Destroy Leader 54 | . 10 44 . Successful Hack 4 | . . 4 . Disable Machine 45 | . 9 36 . Destroy Structure 128 | . 5 123 . Partial Spotted 45 | . . 30 15 Influence Decreases 528 | . 64 80 384 Entered New Map 273 | . 9 . 264 Time Decay 255 | . 55 80 120 Squads Dispatched . | . . . . Investigation . | . . . . Extermination . | . . . . Reinforcement . | . . . . Assault . | . . . . Garrison . | . . . . Intercept . | . . . . Searches Triggered . | . . . . Construction Impeded . | . . . . Haulers Reinforced . | . . . . Active Scanning Responses . | . . . . Cargo Convoy Interrupts . | . . . . Stealth | -11 -10 -9 -9 --------- Run | Yrd Mat Mat Sto Distress Signals 1 | . 1 . . Communications Jammed . | . . . . Distress Signals . | . . . . Times Spotted 31 | 1 4 18 8 Peak Tracking Total 7 | 1 3 5 7 Tactical Retreats 4 | . . 1 3 Traps | -11 -10 -9 -9 ------- Run | Yrd Mat Mat Sto Traps Triggered . | . . . . Indirectly . | . . . . Trap Hack Attempts . | . . . . Triggered . | . . . . Disarmed . | . . . . Reprogrammed . | . . . . Reused . | . . . . Traps Extracted . | . . . . Installed . | . . . . Triggered . | . . . . Machines | -11 -10 -9 -9 ---------- Run | Yrd Mat Mat Sto Machines Disabled 5 | . 1 4 . Max in Single Turn 1 | . 1 1 . Machines Repaired . | . . . . Machines Dismantled . | . . . . Machines Sabotaged . | . . . . Overloaded Fab Kills . | . . . . Hacking | -11 -10 -9 -9 --------- Run | Yrd Mat Mat Sto Machines Accessed 3 | . . 3 . Terminals 3 | . . 3 . Fabricators . | . . . . Repair Stations . | . . . . Recycling Units . | . . . . Scanalyzers . | . . . . Garrison Access . | . . . . Total Hacks 4 | . . 4 . Successful 4 | . . 4 . Failed . | . . . . Catastrophic . | . . . . Database Lockouts . | . . . . Manual . | . . . . Terminals 4 | . . 4 . Fabricators . | . . . . Repair Stations . | . . . . Recycling Units . | . . . . Scanalyzers . | . . . . Garrison Access . | . . . . Terminal Hacks 4 | . . 4 . Record 1 | . . 1 . Alert Level 1 | . . 1 . Locate Traps 1 | . . 1 . Zone Layout 1 | . . 1 . Fabricator Hacks . | . . . . Repair Station Hacks . | . . . . Recycling Unit Hacks . | . . . . Scanalyzer . | . . . . Garrison Access Hacks . | . . . . Unauthorized Hacks . | . . . . Terminals . | . . . . Fabricators . | . . . . Repair Stations . | . . . . Recycling Units . | . . . . Scanalyzers . | . . . . Garrison Access . | . . . . Data Cores Recovered . | . . . . Used . | . . . . Hacking Detections 1 | . . 1 . Full Trace Events . | . . . . Feedback Events . | . . . . Feedback Blocked . | . . . . Robot Schematics Acquired . | . . . . Robots Built . | . . . . Authchips . | . . . . Time . | . . . . Total Robot Build Rating . | . . . . Part Schematics Acquired . | . . . . Parts Built . | . . . . Authchips . | . . . . Time . | . . . . Total Part Build Rating . | . . . . Parts Repaired . | . . . . Time . | . . . . Parts Recycled . | . . . . Recycled Matter . | . . . . Retrieved Matter . | . . . . Retrieved Components . | . . . . Parts Scanalyzed . | . . . . Part Schematics Acquired . | . . . . Parts Damaged . | . . . . Bothacking | -11 -10 -9 -9 ------------ Run | Yrd Mat Mat Sto Used RIF Installer . | . . . . Robots Hacked . | . . . . Non-combat . | . . . . Combat . | . . . . Robot Hacks Applied . | . . . . Relay Couplers Released . | . . . . Fabnet Peak Effective % . | . . . . Robots Rewired . | . . . . Allies Hacked . | . . . . Hacks Repelled . | . . . . Allies | -11 -10 -9 -9 -------- Run | Yrd Mat Mat Sto Total Allies . | . . . . Largest Group . | . . . . Highest-Rated Group . | . . . . Highest-Rated Ally . | . . . . Total Orders . | . . . . Ally Attacks . | . . . . Total Damage . | . . . . Kills . | . . . . Allies Corrupted . | . . . . Allies Melted . | . . . . Intel | -11 -10 -9 -9 ------- Run | Yrd Mat Mat Sto Active Infowar (turns) 662 | . 172 231 259 Optics 487 | . . 228 259 ECM 662 | . 172 231 259 Robot Analysis Total . | . . . . Derelict Logs Recovered . | . . . . Drone Launches . | . . . . Drone Recoveries . | . . . . Exploration | -11 -10 -9 -9 ------------- Run | Yrd Mat Mat Sto Turns Passed 877 | 96 291 231 259 Spaces Moved 1386 | 77 532 455 322 Core 28 | 28 . . . Treads . | . . . . Legs 108 | 49 59 . . Wheels . | . . . . Hover . | . . . . Flight 1250 | . 473 455 322 Fastest Speed 32 | 50 37 32 32 Average Speed 42 | 94 46 36 32 Slowest Speed 120 | 120 120 117 32 Overloaded Moves . | . . . . Propulsion Burnouts . | . . . . Robots Hopped 8 | . . 5 3 Potential Cave-ins . | . . . . Cave-ins Triggered . | . . . . Exploration Rate (%) 40 | 9 78 35 41 Regions Visited 3 Branch Regions 1 Pre-discovered Areas . | . . . . Known Exits Taken . | . . . . Unknown Exits Taken 3 | 1 1 1 . Scrap Searched . | . . . . Spaces Dug 12 | . . 12 . Terrain Destroyed 150 | . 5 145 . Melee . | . . . . Projectile . | . . . . AOE 150 | . 5 145 . Terrain Rammed . | . . . . Walls Destroyed . | . . . . Machines Disabled . | . . . . Actions | -11 -10 -9 -9 --------- Run | Yrd Mat Mat Sto Total 1639 | 94 576 495 474 Wait 154 | . . . 154 Move 1368 | 76 531 444 317 Hop 7 | . . 5 2 Pick Up 34 | 8 13 12 1 Fast Attach 1 | . 1 . . Attach 18 | 5 7 6 . Detach 7 | . 5 2 . Swap 11 | 1 6 4 . Drop 22 | 1 11 10 . Fire 17 | 3 2 12 . Melee . | . . . . Ram . | . . . . Kick . | . . . . Crush . | . . . . Escape Stasis . | . . . . Rewire . | . . . . Trap . | . . . . Miscellaneous . | . . . . Route ------- -11/Scrapyard -10/Materials (discovered 3 exits: *Mat x2 / [*Sub]) -9/Materials (discovered 2 exits: [*Min] / *Sto) -9/Storage History --------- Turn | Location | Event 2 | -11/Scrapyard | Met Revision 17 70 | -11/Scrapyard | Discovered new exit (range 8) 97 | -11/Scrapyard | Entered Materials 98 | -10/Materials | Met a group of wandering Federalists 187 | -10/Materials | Discovered new exit (range 13) 231 | -10/Materials | Discovered new exit (range 5) 323 | -10/Materials | Build established: Mutant 334 | -10/Materials | Discovered new exit (range 15) 388 | -10/Materials | Entered another Materials area 388 | -9/Materials | Evolved 2 slots: Propulsion x1, Utility x1 395 | -9/Materials | Discovered new exit (range 11) 501 | -9/Materials | Discovered new exit (range 18) 536 | -9/Materials | Destroyed 12 combat bots 619 | -9/Materials | Entered Storage 682 | -9/Storage | Met 01-MTF 878 | -9/Storage | Self-destructed Last Messages --------------- U-05 Engineer builds a Wall. K-01 Serf collects debris. LOCATION=UNKNOWN GOAL=ESCAPE K-01 Serf cleans the Storage Shell. Acquired Aluminum Leg. 01-MTF emerges from hiding: "Hold your fire! I can explain everything! Oh, you weren't sent by them, and clearly don't belong here any more than I do, great." Connecting with Door Terminal... Current location identified: Storage 01-MTF: "There's plenty of loot to go around, and to be honest I'm just looking for something specific, but have no idea if it's even around here..." 01-MTF: "Tell you what, I'll take care of any doors we come across, and you can take anything you want. It's probably not here anyway, but may as well explore a bit." Map ----- +----------------------------------------------------+ | | | | | | | | | | | | | | | | | | | | | ??????????????????????????????? | | ?????????????????????## ####### | | ?????????????????????# # | | ?????????????????????# """"" # | | ?????????????????????# """"" # | | ?????????????????????# """"" # | | ??????????###????????# # | | ?????????##T#####????# """"" # | | ?????????# "===#????#^ """"" # | | ?????????# ==#????# """"" # | | ?????????# #####????# # | | ????#######+##############+#### | | ????# | | ????# | | ????# p | | ????# @ #####+################/ | | ????# #?# ##???????????# | | ????# #?# T#???????????# | | ????# #?##" "###??????????# | | ????# #?#! #??????????# | | ????# #?# !!#?##"?????## | | ????# #?#!! ! #?# ??? # | | ????# #?#! ! !#?# """ # | | ????# #?########?# """ # | | ????# #?????????## """ # | | ????# #?????????# # | | ????# #??????????# """ # | | ????# #??????????# """ ### | | ????# #??????????? """ +?? | | ????# #????????????? ???? | | ????# #??????????#+###+###### | | ????# #??????????# ^ # | | ????# ############ # | | ????# + + # | | ????# # """""" ### ######## | | ????# # "????" #?# #??????? | | ????# + "????" #?# #??????? | | ????# # """""" #?# #??????? | | ????# # #?# #??????? | | ????# # #?# #??????? | +----------------------------------------------------+ Best States ------------- Heat Dissipation 35 Energy Generation 10 Energy Capacity 250 Matter Stores 300 Matter Capacity 300 Sight Range 18 Terrain Scan Density 10 ECM Strength 1 Resistance: KI 20 Resistance: TH 20 Resistance: EX 20 Resistance: EM 20 Resistance: I 20 Resistance: S 20 Resistance: P 20 Evasion (%) 63 Offensive Hacking 10 Item Schematics ----------------- None Robot Schematics ------------------ None Fabricated ------------ Nothing Repaired ---------- Nothing Alien Tech Used ----------------- None Achievements -------------- Crack Shot Loot Pinata Oops Challenges ------------ None Game ------ Seed XenonIonicProtomatter Manual? 0 Play Time 00:26:28 Cumulative 0.4 hours Start 2025.06.21 @ 18:26:22 End 2025.06.21 @ 19:00:59 Sessions 1 Manual Loads 0 Difficulty Adventurer Special Mode None Game No. 1 Rogue 0 Adventurer 1 Explorer 0 Win Type - Total 0 Types 0/0/0/0/0/0/0/0/0/0 Lore% 0 Gallery% 1 Achievement% 1 Wizard Run 0 Options --------- Layout 1 ASCII 0 Keyboard 0 Movement Mouse Keybinds 0 Fullscreen 2 Font 32/SmallcapsGlow Map View 50x35 Zoom Use 0% Tactical HUD 0 Map Filters NONE Filters NONE Steam 1 RUN: 7c8c71ef-3f57-4acc-be39-c971a3ae66ea